Cogmind - Beta 10.2 @@@ ROGUE MODE // 2021.01.03 @ 22:21:19 Player: Rushional Result: Destroyed by as-40657 with Assembled Heavy Rifle Performance ------------- Evolutions (0) 0 Regions Visited (2) 400 Robots Destroyed (20) 100 Value Destroyed (334) 334 Prototype IDs (0) 0 Alien Tech Used (0) 0 Bonus (0) 0 TOTAL SCORE: 834 Bonus ------- None Cogmind --------- Core Integrity 0/250 Matter 300/300 Energy 100/100 System Corruption 0% Temperature Cool (0) Movement Core (50) Location -10/Mines Parts ------- > --- POWER (1) -------- (None) > --- PROPULSION (2) --- (None) > --- UTILITY (2) ------ (None) > --- WEAPON (2) ------- (None) > --- INVENTORY (4) ---- Light Ion Engine Light Ion Engine Experimental Sensor Array Assault Rifle Peak State ------------ > --- POWER ------------ Ion Engine > --- PROPULSION ------- Compact Wheel Compact Wheel > --- UTILITY ---------- Small Storage Unit Improved Terrain Scanner > --- WEAPON ----------- Medium Laser Assault Rifle > --- INVENTORY -------- Ion Engine Light Ion Engine Light Assault Rifle [Rating: 8] Favorites ----------- Power Light Ion Engine Engine Light Ion Engine Propulsion Hover Unit Wheel Wheel Hover Unit Hover Unit Utility Small Storage Unit Device Sensor Array Storage Small Storage Unit Weapon Assault Rifle Energy Gun Medium Laser Ballistic Gun Assault Rifle Launcher Grenade Launcher Special Melee Weapon Datajack Build | -11 -10 -10 ------- Run | Scr Mat Min Slots Evolved . | . . . Power . | . . . Propulsion . | . . . Utility . | . . . Weapon . | . . . Parts Attached 28 | 13 11 4 Power 3 | 1 2 . Engine 3 | 1 2 . Core . | . . . Reactor . | . . . Propulsion 14 | 8 4 2 Treads . | . . . Leg . | . . . Wheel 9 | 8 . 1 Hover 5 | . 4 1 Flight . | . . . Utility 4 | 2 2 . Device 3 | 1 2 . Storage 1 | 1 . . Processor . | . . . Hackware . | . . . Protection . | . . . Artifact . | . . . Weapon 7 | 2 3 2 Energy Gun 2 | 1 1 . Energy Cannon . | . . . Ballistic Gun 2 | 1 1 . Ballistic Cannon . | . . . Launcher 1 | . . 1 Special Weapon . | . . . Impact Weapon . | . . . Slashing Weapon . | . . . Piercing Weapon . | . . . Special Melee Weapon 2 | . 1 1 Unidentified Prototypes . | . . . Parts Lost 9 | . 1 8 Power 1 | . . 1 Propulsion 5 | . 1 4 Utility 1 | . . 1 Weapon 2 | . . 2 Highest Loss Streak 8 | . 1 8 Average Slot Usage (%) 93 | . 99 60 Engine 13 | . 14 7 Hover 24 | . 26 17 Device 13 | . 14 7 Storage 13 | . 14 9 Energy Gun 10 | . 11 1 Ballistic Gun 12 | . 14 3 Special Melee Weapon 2 | . 2 6 Naked Turns 30 | . . 30 Heaviest Build 14 | 14 14 13 Greatest Support 32 | 32 20 12 Greatest Overweight (x) 2 | . 2 1 Average Overweight (x) . | . . . Largest Inventory Capacity 6 | 6 6 6 Average Capacity 5 | 5 6 5 Most Carried 6 | 6 6 6 Average Carried 5 | 3 5 5 Final Capacity 6 | 6 6 4 Final Carried 6 | 6 6 4 Class Distribution -------------------- 70% | Mutant 29% | Scavenger-Mutant Dominant Class ---------------- Mutant | -10/Materials Mutant | -10/Mines Resources | -11 -10 -10 ----------- Run | Scr Mat Min Matter Collected 570 | 349 206 15 Remotely . | . . . Salvage Created 535 | 115 412 8 Parts 50 | 17 33 . Haulers Intercepted 1 | . 1 . Recyclers Shooed . | . . . Parts Field Recycled . | . . . Retrieved Matter . | . . . Parts Self-Destructed . | . . . Prevented . | . . . Kills | -11 -10 -10 ------- Run | Scr Mat Min Combat Hostiles Destroyed 11 | . 9 2 Guns 9 | . 9 . AOE 2 | . . 2 Classes Destroyed 8 | 2 5 1 Worker 2 | 2 . . Tunneler 5 | 5 . . Hauler 1 | . 1 . Operator 1 | . 1 . Watcher 2 | . 2 . Swarmer 3 | . 3 . Grunt 6 | . 6 . Assembled 2 | . . 2 Best Kill Streak 7 | 7 6 2 Combat Bots Only 5 | . 5 2 Max Kills in Single Turn 2 | 1 1 2 Gunslinging . | . . . Exploded 2 | . . 2 Melee . | . . . Uniques/NPCs Destroyed . | . . . Combat | -11 -10 -10 -------- Run | Scr Mat Min Damage Taken 723 | . 204 519 Core 261 | . 21 240 Absorbed by Shields . | . . . Core Remaining (%) 100 | 100 . . Volleys Fired 41 | 9 31 1 Largest 2 | 2 2 1 Hottest 70 | 70 70 30 Shots Fired 80 | 18 61 1 Gun 79 | 18 61 . Cannon . | . . . Launcher 1 | . . 1 Special . | . . . Kinetic 40 | 9 31 . Thermal 39 | 9 30 . Explosive 1 | . . 1 Electromagnetic . | . . . Robot Hit Streak 14 | 3 14 . Robot Miss Streak 3 | 2 2 3 Penetration Max . | . . . Secondary Targets . | . . . Shots Hit Robots 52 | 9 43 . Core Hits 41 | 7 22 12 Critical Hits . | . . . Critical Kills . | . . . Critical Parts Destroyed . | . . . Melee Attacks 3 | . 3 . Impact . | . . . Slashing . | . . . Piercing . | . . . Sneak Attacks . | . . . Combat Hostiles . | . . . Follow-up Attacks . | . . . Damage Inflicted 776 | 128 502 146 Guns 630 | 128 502 . Cannons . | . . . Explosions 146 | . . 146 Melee . | . . . Ramming . | . . . Kinetic 316 | 65 251 . Thermal 314 | 63 251 . Explosive 146 | . . 146 Electromagnetic . | . . . Impact . | . . . Slashing . | . . . Piercing . | . . . Highest Corruption . | . . . Average Corruption . | . . . Corruption Purged . | . . . Overload Shots . | . . . Overflow Damage . | . . . Projectiles . | . . . Explosions . | . . . Melee . | . . . Knockbacks . | . . . Impact . | . . . Kinetic . | . . . Secondary . | . . . Self-Inflicted Damage . | . . . Shots . | . . . Rammed . | . . . Targets Rammed . | . . . Kicked . | . . . Crushed . | . . . Highest Temperature 170 | 27 170 11 Average Temperature 48 | 9 58 5 Received Heat Transfer 204 | . 84 120 Siege Activations . | . . . Robots Corrupted . | . . . Combat Hostiles . | . . . Parts Fried . | . . . Impact Corruptions . | . . . Robots Melted . | . . . Combat Hostiles . | . . . Parts Melted . | . . . Heat Transferred 925 | 185 740 . Parts Sabotaged . | . . . Parts Stolen . | . . . Parts Stripped . | . . . Power Chain Reactions . | . . . Missiles Intercepted . | . . . Alert | -11 -10 -10 ------- Run | Scr Mat Min Peak Influence 243 | 35 243 50 Initial 35 | . 22 35 Average 93 | 15 130 23 Maximum Alert Level 1 | . 1 . Low Security (%) 88 | 100 82 100 Level 1 11 | . 17 . Level 2 . | . . . Level 3 . | . . . Level 4 . | . . . Level 5 . | . . . High Security . | . . . Max Security . | . . . Squads Dispatched . | . . . Investigation . | . . . Extermination . | . . . Reinforcement . | . . . Assault . | . . . Garrison . | . . . Intercept . | . . . Construction Impeded . | . . . Haulers Reinforced . | . . . Stealth | -11 -10 -10 --------- Run | Scr Mat Min Distress Signals 3 | . 3 . Communications Jammed . | . . . Distress Signals . | . . . Times Spotted 32 | . 14 18 Peak Tracking Total 18 | . 3 18 Tactical Retreats 3 | . . 3 Traps | -11 -10 -10 ------- Run | Scr Mat Min Traps Triggered . | . . . Indirectly . | . . . Trap Hack Attempts . | . . . Triggered . | . . . Disarmed . | . . . Reprogrammed . | . . . Reused . | . . . Traps Extracted . | . . . Installed . | . . . Triggered . | . . . Machines | -11 -10 -10 ---------- Run | Scr Mat Min Machines Disabled . | . . . Max in Single Turn . | . . . Machines Sabotaged . | . . . Garrisons Compromised . | . . . Overloaded Fab Kills . | . . . Fab Network Shutdowns . | . . . Hacking | -11 -10 -10 --------- Run | Scr Mat Min Machines Accessed 4 | . 4 . Terminals 3 | . 3 . Fabricators . | . . . Repair Stations . | . . . Recycling Units 1 | . 1 . Scanalyzers . | . . . Garrison Access . | . . . Total Hacks 5 | . 5 . Successful 3 | . 3 . Failed 2 | . 2 . Catastrophic 2 | . 2 . Database Lockouts . | . . . Manual 3 | . 3 . Terminals 3 | . 3 . Fabricators . | . . . Repair Stations . | . . . Recycling Units 2 | . 2 . Scanalyzers . | . . . Garrison Access . | . . . Terminal Hacks 1 | . 1 . Branch Access Points 1 | . 1 . Fabricator Hacks . | . . . Repair Station Hacks . | . . . Recycling Unit Hacks 2 | . 2 . Report Inventory 1 | . 1 . Retrieve Components 1 | . 1 . Scanalyzer . | . . . Garrison Access Hacks . | . . . Unauthorized Hacks . | . . . Terminals . | . . . Fabricators . | . . . Repair Stations . | . . . Recycling Units . | . . . Scanalyzers . | . . . Garrison Access . | . . . Data Cores Recovered 1 | . 1 . Used 1 | . 1 . Hacking Detections 3 | . 3 . Full Trace Events . | . . . Feedback Events . | . . . Feedback Blocked . | . . . Robot Schematics Acquired . | . . . Robots Built . | . . . Matter . | . . . Time . | . . . Total Robot Build Rating . | . . . Part Schematics Acquired . | . . . Parts Built . | . . . Matter . | . . . Time . | . . . Total Part Build Rating . | . . . Parts Repaired . | . . . Time . | . . . Parts Recycled . | . . . Recycled Matter . | . . . Retrieved Matter . | . . . Retrieved Components 6 | . 6 . Parts Scanalyzed . | . . . Part Schematics Acquired . | . . . Parts Damaged . | . . . Bothacking | -11 -10 -10 ------------ Run | Scr Mat Min Used RIF Installer . | . . . Robots Hacked 1 | . 1 . Non-combat . | . . . Combat 1 | . 1 . Robot Hacks Applied 1 | . 1 . parse_system 1 | . 1 . Relay Couplers Released . | . . . Robots Rewired . | . . . Allies Hacked . | . . . Hacks Repelled . | . . . Allies | -11 -10 -10 -------- Run | Scr Mat Min Total Allies . | . . . Largest Group . | . . . Highest-Rated Group . | . . . Highest-Rated Ally . | . . . Total Orders . | . . . Ally Attacks . | . . . Total Damage . | . . . Kills . | . . . Allies Corrupted . | . . . Allies Melted . | . . . Intel | -11 -10 -10 ------- Run | Scr Mat Min Robot Analysis Total . | . . . Derelict Logs Recovered . | . . . Drone Launches . | . . . Drone Recoveries . | . . . Exploration | -11 -10 -10 ------------- Run | Scr Mat Min Turns Passed 754 | 158 504 92 Spaces Moved 659 | 115 406 138 Core 59 | 1 . 58 Treads . | . . . Legs . | . . . Wheels 122 | 114 5 3 Hover 478 | . 401 77 Flight . | . . . Fastest Speed 50 | 50 56 50 Average Speed 62 | 88 57 56 Slowest Speed 185 | 100 185 120 Overloaded Moves . | . . . Propulsion Burnouts . | . . . Robots Hopped . | . . . Cave-ins Triggered . | . . . Exploration Rate (%) 29 | 5 52 31 Regions Visited 2 Branch Regions 1 Pre-discovered Areas . | . . . Known Exits Taken 1 | . 1 . Unknown Exits Taken 1 | 1 . . Scrap Searched 1 | . . 1 Spaces Dug . | . . . Terrain Destroyed 5 | . . 5 Melee . | . . . Projectile . | . . . AOE 5 | . . 5 Terrain Rammed . | . . . Walls Destroyed . | . . . Machines Disabled . | . . . Actions | -11 -10 -10 --------- Run | Scr Mat Min Total 912 | 148 613 151 Wait 149 | . 145 4 Move 657 | 114 405 138 Hop . | . . . Pick Up 13 | 7 5 1 Fast Attach 14 | 9 4 1 Attach 2 | . . 2 Detach 4 | 2 2 . Swap 12 | 4 7 1 Drop 17 | 3 11 3 Fire 41 | 9 31 1 Melee 3 | . 3 . Ram . | . . . Kick . | . . . Crush . | . . . Escape Stasis . | . . . Rewire . | . . . Trap . | . . . Miscellaneous . | . . . Route ------- -11/Scrapyard -10/Materials (discovered 3 exits: [*Mat x2] / *Min) -10/Mines History --------- Turn | Location | Event 13 | -11/Scrapyard | Discovered new exit (range 16) 159 | -11/Scrapyard | Entered Materials 476 | -10/Materials | Discovered new exit (range 16) 543 | -10/Materials | Discovered new exit (range 16) 610 | -10/Materials | Discovered new exit (range 10) 641 | -10/Materials | Identified exit to Mines 654 | -10/Materials | Build established: Mutant 663 | -10/Materials | Entered Mines 687 | -10/Mines | Found a damaged Exp. Sensor Array with a note attached 688 | -10/Mines | Found Prototype Device 697 | -10/Mines | Assembled infested the area 724 | -10/Mines | Core integrity fell below 50% 726 | -10/Mines | Core integrity fell below 20% 755 | -10/Mines | Lost 8 parts (1p4n1u2w) 755 | -10/Mines | Destroyed by as-40657 with Assembled Heavy Rifle Last Messages --------------- again, ha." 00688_ Dropped Signal Interpreter. 00688_ Acquired Prototype Device. 00697_ ALERT: Infestation in the mines, dispatching Demolisher response squad. 00708_ K-01 Serf collects debris. 00711_ K-01 Serf destroyed. 00713_ Lgt. Ion Engine destroyed. 00715_ Hover Unit destroyed. 00716_ Sensor Array destroyed. 00719_ Hover Unit destroyed. 00719_ as-59036 destroyed. 00719_ as-37308 destroyed. 00719_ Grenade Launcher destroyed. 00721_ Hover Unit destroyed. 00721_ Datajack destroyed. 00724_ Wheel destroyed. 00725_ Dropped Sml. Storage Unit. 00743_ Acquired 5 matter. 00752_ The unstable cave ceiling collapses. Map ----- +----------------------------------------------------+ | | | | | | | | | | | | | | | | | | | | | | | | | | | | | | | | | | | | | | | | | | | ?????????????????????????????????????????????????? | | ?????????????????????########????????????????????? | | ####?????????????????# #????????????????????? | | ##???????????###### #####????????????????? | | #??????????## @ ##???????????????? | | ############ ##??????????????? | | = !% < ??????????? | | %! [ ?????????? | | ############ #### ###### ?????????? | | #???????## ! #???##????????????????? | | #????#### ##????????????????????? | | #???## ?????????????? | | #???# #######????????????????? | | #???# # #?????????????????????? | | ##???## ### d# #?????????????????????? | | ##?????## ##?## #?????????????????????? | | ##??????####??## ## d ?????????????????????? | | ##???????????# # ?????????????????????? | | ##?????????## ## ?????????????????????? | | #????##### #? ##?????????????????????? | | #???## # ##?????????????????????????????? | | ##???# % #??????????????????????????????? | | ##????# #???????????????????????????????? | | ##????## #???????????????????????????????? | | #?????# % ##??????????????????????????????? | | ##?????# ##?????????????????????????????? | | #?????## ##????????????????????????????? | | ??????# ##???????????????????????????? | | ##????# #???????????????????????????? | +----------------------------------------------------+ Best States ------------- Heat Dissipation 35 Energy Generation 10 Energy Capacity 250 Matter Stores 300 Matter Capacity 300 Sight Range 16 Robot Scan Range 10 Terrain Scan Range 16 Terrain Scan Density 10 Evasion (%) 53 Item Schematics ----------------- None Robot Schematics ------------------ None Fabricated ------------ Nothing Alien Tech Used ----------------- None Achievements -------------- None Challenges ------------ None Game ------ Seed HackingVortexDeconstructor Manual? 0 Play Time 00:37:17 Cumulative 11.8 hours Start 2021.01.03 @ 21:26:42 End 2021.01.03 @ 22:21:19 Sessions 1 Manual Loads 0 Difficulty Rogue Special Mode None Game No. 4 Rogue 4 Adventurer 0 Explorer 0 Win Type - Total 0 Types 0/0/0/0/0/0/0/0/0 Lore% 7 Gallery% 8 Achievement% 9 Wizard Run 0 Options --------- ASCII 1 Keyboard 1 Movement Numpad Keybinds 0 Fullscreen 1 Font 18/TerminusBold Map View 76x50 Tactical HUD 1 Map Filters NONE Filters NONE Steam 1 RUN: 430b8680-b414-4267-b40d-a9167898ea4b